fUST/lending_fUST_20251008
["ID","MTS","AMOUNT","RATE_DAILY","PERIOD"]
[389969398,1759913443086,-183.941907,0.00021369,7]
[389969400,1759913443095,-662.79,0.00021369,2]
[389969403,1759913443106,-662.79,0.00021369,2]
[389969405,1759913443115,-500.0,0.00021369,2]
[389969406,1759913443128,-662.79,0.00021369,2]
[389969408,1759913443140,-662.79,0.00021369,2]
[389969410,1759913443149,-663.02897305,0.00021369,2]
[389969412,1759913443159,-500.0,0.00021369,2]
[389969414,1759913443168,-151.0,0.00021369,7]
[389969416,1759913443177,-151.0,0.00021369,7]
[389969418,1759913443187,-151.0,0.00021369,7]
[389969420,1759913443196,-151.0,0.00021369,7]
[389969422,1759913443205,-1145.13,0.00021369,2]
[389969424,1759913443216,-151.0,0.00021369,7]
[389969427,1759913443225,-151.907832,0.00021369,7]
[389969429,1759913443236,-190.334255,0.00021369,7]
[389969431,1759913443245,-2433.05,0.00021369,2]
[389969433,1759913443254,-500.0,0.00021369,2]
[389969435,1759913443263,-500.0,0.00021369,2]
[389969437,1759913443272,-636.69,0.00021369,2]
[389969439,1759913443282,-919.96,0.00021369,2]
[389969441,1759913443291,-512.96,0.00021369,2]
[389969443,1759913443301,-500.0,0.00021369,2]
[389969445,1759913443311,-211.68002786,0.00021369,2]
[389969447,1759913443320,-1263.89,0.00021369,2]
[389969449,1759913443330,-2548.97,0.00021369,2]
[389969451,1759913443340,-500.0,0.00021369,2]
[389969453,1759913443349,-941.3,0.00021369,2]
[389969455,1759913443359,-500.0,0.00021369,2]
[389969457,1759913443368,-461.60812861,0.00021369,2]
[389969459,1759913443377,-500.0,0.00021369,2]
[389969461,1759913443386,-500.0,0.00021369,2]
[389969463,1759913443395,-500.0,0.00021369,2]
[389969465,1759913443406,-500.0,0.00021369,2]
[389969467,1759913443415,-151.847987,0.00021369,7]
[389969469,1759913443423,-500.0,0.00021369,2]
[389969471,1759913443433,-500.0,0.00021369,2]
[389969473,1759913443442,-500.0,0.00021369,2]
[389969475,1759913443452,-500.0,0.00021369,2]
[389969476,1759913443461,-500.0,0.00021369,2]
[389969477,1759913443471,-1067.97,0.00021369,2]
[389969478,1759913443481,-500.0,0.00021369,2]
[389969479,1759913443490,-500.0,0.00021369,2]
[389969480,1759913443500,-2236.62,0.00021369,2]
[389969482,1759913443510,-563.52,0.00021369,2]
[389969484,1759913443519,-500.0,0.00021369,2]
[389969486,1759913443528,-151.0,0.00021369,7]
[389969488,1759913443537,-151.0,0.00021369,7]
[389969489,1759913443549,-152.265948,0.00021369,7]
[389969490,1759913443559,-500.38682808,0.00021369,2]
[389969492,1759913443568,-753.43,0.00021369,2]
[389969494,1759913443578,-876.05,0.00021369,2]
[389969496,1759913443587,-500.0,0.00021369,2]
[389969498,1759913443597,-1136.12,0.00021369,2]
[389969499,1759913443608,-500.0,0.00021369,2]
[389969501,1759913443619,-500.0,0.00021369,2]
[389969503,1759913443628,-500.0,0.00021369,2]
[389969505,1759913443637,-500.0,0.00021369,2]
[389969507,1759913443647,-900.28,0.00021369,2]
[389969509,1759913443656,-900.28,0.00021369,2]
[389969511,1759913443666,-900.28,0.00021369,2]
[389969513,1759913443675,-900.28,0.00021369,2]
[389969515,1759913443684,-745.87,0.00021369,2]
[389969517,1759913443694,-900.28,0.00021369,2]
[389969520,1759913443703,-900.28,0.00021369,2]
[389969522,1759913443713,-900.28,0.00021369,2]
[389969524,1759913443722,-900.28,0.00021369,2]
[389969525,1759913443732,-605.03987459,0.00021369,2]
[389969528,1759913443742,-900.28,0.00021369,2]
[389969530,1759913443752,-900.28,0.00021369,2]
[389969532,1759913443761,-900.28,0.00021369,2]
[389969534,1759913443771,-900.28,0.00021369,2]
[389969536,1759913443780,-900.28,0.00021369,2]
[389969538,1759913443790,-900.28,0.00021369,2]
[389969540,1759913443800,-900.28,0.00021369,2]
[389969542,1759913443812,-900.28,0.00021369,2]
[389969544,1759913443822,-900.28,0.00021369,2]
[389969546,1759913443831,-900.28,0.00021369,2]
[389969548,1759913443840,-900.28,0.00021369,2]
[389969550,1759913443850,-900.28,0.00021369,2]
[389969552,1759913443859,-2618.69,0.00021369,2]
[389969554,1759913443868,-900.28,0.00021369,2]
[389969556,1759913443877,-900.28,0.00021369,2]
[389969557,1759913443887,-900.28,0.00021369,2]
[389969559,1759913443896,-900.34636747,0.00021369,2]
[389969561,1759913443906,-866.75,0.00021369,2]
[389969563,1759913443916,-500.0,0.00021369,2]
[389969565,1759913443926,-569.81,0.00021369,2]
[389969567,1759913443935,-151.0,0.00021369,7]
[389969569,1759913443944,-151.0,0.00021369,7]
[389969571,1759913443954,-500.0,0.00021369,2]
[389969573,1759913443963,-715.92,0.00021369,2]
[389969575,1759913443972,-500.0,0.00021369,2]
[389969578,1759913443982,-653.49,0.00021369,2]
[389969580,1759913443991,-326.795917,0.00021369,7]
[389969582,1759913444000,-326.795917,0.00021369,7]
[389969584,1759913444010,-500.0,0.00021369,2]
[389969586,1759913444020,-689.72,0.00021369,2]
[389969588,1759913444029,-326.795917,0.00021369,7]
[389969590,1759913444039,-326.795917,0.00021369,7]
[389969592,1759913444049,-1916.23,0.00021369,2]
[389969594,1759913444058,-326.795917,0.00021369,7]
[389969596,1759913444067,-326.795917,0.00021369,7]
[389969598,1759913444076,-500.0,0.00021369,2]
[389969600,1759913444086,-326.795917,0.00021369,7]
[389969601,1759913444095,-500.0,0.00021369,2]
[389969603,1759913444105,-326.795917,0.00021369,7]
[389969605,1759913444114,-500.0,0.00021369,2]
[389969607,1759913444124,-652.46,0.00021369,2]
[389969609,1759913444138,-500.0,0.00021369,2]
[389969611,1759913444147,-500.0,0.00021369,2]
[389969613,1759913444157,-500.0,0.00021369,2]
[389969615,1759913444171,-702.03,0.00021369,2]
[389969618,1759913444181,-6237.73,0.00021369,2]
[389969620,1759913444190,-151.445284,0.00021369,7]
[389969622,1759913444201,-500.0,0.00021369,2]
[389969624,1759913444211,-151.0,0.00021369,7]
[389969626,1759913444220,-151.0,0.00021369,7]
[389969628,1759913444230,-151.0,0.00021369,7]
[389969630,1759913444239,-151.0,0.00021369,7]
[389969632,1759913444248,-1409.03,0.00021369,2]
[389969634,1759913444258,-151.0,0.00021369,7]
[389969636,1759913444267,-500.0,0.00021369,2]
[389969638,1759913444276,-151.0,0.00021369,7]
[389969640,1759913444285,-1558.54,0.00021369,2]
[389969642,1759913444295,-500.0,0.00021369,2]
[389969644,1759913444304,-151.379047,0.00021369,7]
[389969646,1759913444314,-500.0,0.00021369,2]
[389969647,1759913444324,-500.0,0.00021369,2]
[389969649,1759913444334,-151.0,0.00021369,7]
[389969651,1759913444344,-580.81,0.00021369,2]
[389969653,1759913444353,-151.0,0.00021369,7]
[389969655,1759913444363,-500.0,0.00021369,2]
[389969657,1759913444372,-770.01,0.00021369,2]
[389969659,1759913444382,-1930.67,0.00021369,2]
[389969661,1759913444391,-656.31,0.00021369,2]
[389969663,1759913444401,-500.0,0.00021369,2]
[389969665,1759913444411,-2183.08,0.00021369,2]
[389969668,1759913444421,-402.0838479,0.00021369,7]
[389969670,1759913444431,-1101.04,0.00021369,2]
[389969671,1759913444440,-500.0,0.00021369,2]
[389969673,1759913444449,-151.0,0.00021369,7]
[389969675,1759913444458,-151.0,0.00021369,7]
[389969677,1759913444467,-155.205038,0.00021369,7]
[389969679,1759913444476,-151.0,0.00021369,7]
[389969681,1759913444485,-516.1,0.00021369,2]
[389969683,1759913444495,-151.0,0.00021369,7]
[389969685,1759913444504,-500.0,0.00021369,2]
[389969687,1759913444514,-151.327729,0.00021369,7]
[389969689,1759913444523,-151.0,0.00021369,7]
[389969691,1759913444532,-152.59198,0.00021369,7]
[389969693,1759913444541,-151.0,0.00021369,7]
[389969695,1759913444550,-802.58,0.00021369,2]
[389969697,1759913444560,-500.0,0.00021369,2]
[389969699,1759913444569,-151.0,0.00021369,7]
[389969701,1759913444578,-151.0,0.00021369,7]
[389969703,1759913444588,-500.0,0.00021369,2]
[389969705,1759913444597,-501.10107604,0.00021369,2]
[389969707,1759913444608,-151.0,0.00021369,7]
[389969709,1759913444618,-151.0,0.00021369,7]
[389969711,1759913444628,-500.0,0.00021369,2]
[389969713,1759913444637,-151.0,0.00021369,7]
[389969715,1759913444647,-151.0,0.00021369,7]
[389969717,1759913444656,-480.51684085,0.00021369,2]
[389969719,1759913444666,-151.0,0.00021369,7]
[389969721,1759913444675,-151.0,0.00021369,7]
[389969723,1759913444684,-2038.01,0.00021369,2]
[389969725,1759913444693,-500.0,0.00021369,2]
[389969727,1759913444703,-500.0,0.00021369,2]
[389969729,1759913444712,-151.0,0.00021369,7]
[389969731,1759913444722,-465.95510797,0.00021369,2]
[389969733,1759913444731,-481.87688181,0.00021369,2]
[389969735,1759913444741,-151.0,0.00021369,7]
[389969737,1759913444752,-476.71024608,0.00021369,2]
[389969739,1759913444762,-500.0,0.00021369,2]
[389969741,1759913444771,-1345.15,0.00021369,2]
[389969743,1759913444781,-526.99,0.00021369,2]
[389969745,1759913444791,-500.6523863,0.00021369,2]
[389969747,1759913444801,-716.23,0.00021369,2]
[389969749,1759913444811,-500.0,0.00021369,2]
[389969751,1759913444821,-1092.14,0.00021369,2]
[389969753,1759913444831,-500.0,0.00021369,2]
[389969755,1759913444841,-775.11,0.00021369,2]
[389969757,1759913444852,-1082.23,0.00021369,2]
[389969759,1759913444861,-412.48717941,0.00021369,2]
[389969761,1759913444871,-500.0,0.00021369,2]
[389969763,1759913444881,-500.0,0.00021369,2]
[389969765,1759913444890,-500.0,0.00021369,2]
[389969767,1759913444900,-500.0,0.00021369,2]
[389969769,1759913444909,-500.0,0.00021369,2]
[389969771,1759913444919,-500.0,0.00021369,2]
[389969773,1759913444929,-500.0,0.00021369,2]
[389969775,1759913444938,-4987.04,0.00021369,2]
[389969777,1759913444948,-793.32,0.00021369,2]
[389969779,1759913444958,-500.0,0.00021369,2]
[389969781,1759913444968,-500.0,0.00021369,2]
[389969783,1759913444977,-151.0,0.00021369,7]
[389969785,1759913444987,-151.0,0.00021369,7]
[389969787,1759913444996,-151.0,0.00021369,7]
[389969789,1759913445006,-151.0,0.00021369,7]
[389969791,1759913445015,-500.0,0.00021369,2]
[389969793,1759913445025,-151.0,0.00021369,7]
[389969795,1759913445035,-151.0,0.00021369,7]
[389969797,1759913445046,-500.0,0.00021369,2]
[389969800,1759913445056,-500.0,0.00021369,2]
[389969802,1759913445066,-151.0,0.00021369,7]
[389969804,1759913445075,-500.0,0.00021369,2]
[389969806,1759913445085,-151.0,0.00021369,7]
[389969808,1759913445094,-151.0,0.00021369,7]
[389969810,1759913445105,-151.0,0.00021369,7]
[389969812,1759913445115,-304.66882393,0.00021369,2]
[389969814,1759913445135,-151.0,0.00021369,7]
[389969815,1759913445144,-151.0,0.00021369,7]
[389969817,1759913445153,-151.0,0.00021369,7]
[389969819,1759913445162,-151.0,0.00021369,7]
[389969821,1759913445172,-500.0,0.00021369,2]
[389969823,1759913445181,-4624.8,0.00021369,2]
[389969825,1759913445191,-1665.3,0.00021369,2]
[389969828,1759913445207,-1665.3,0.00021369,2]
[389969830,1759913445219,-1665.3,0.00021369,2]
[389969832,1759913445230,-860.96,0.00021369,2]
[389969834,1759913445242,-1665.3,0.00021369,2]
[389969836,1759913445252,-1665.3,0.00021369,2]
[389969838,1759913445261,-1665.3,0.00021369,2]
[389969839,1759913445270,-1665.3,0.00021369,2]
[389969841,1759913445279,-921.22,0.00021369,2]
[389969843,1759913445288,-1665.3,0.00021369,2]
[389969845,1759913445297,-1665.3,0.00021369,2]
[389969847,1759913445306,-1665.3,0.00021369,2]
[389969849,1759913445315,-1665.3,0.00021369,2]
[389969851,1759913445324,-1665.3,0.00021369,2]
[389969853,1759913445334,-1000.0,0.00021369,2]
[389969855,1759913445343,-1665.3,0.00021369,2]
[389969857,1759913445352,-500.0,0.00021369,2]
[389969859,1759913445362,-1665.3,0.00021369,2]
[389969861,1759913445371,-1665.3,0.00021369,2]
[389969863,1759913445381,-151.561202,0.00021369,7]
[389969865,1759913445391,-1665.3,0.00021369,2]
[389969867,1759913445401,-1665.3,0.00021369,2]
[389969869,1759913445410,-638.77,0.00021369,2]
[389969871,1759913445419,-1665.3,0.00021369,2]
[389969873,1759913445428,-1665.3,0.00021369,2]
[389969874,1759913445438,-1665.3,0.00021369,2]
[389969876,1759913445447,-1665.3,0.00021369,2]
[389969879,1759913445457,-1665.3,0.00021369,2]
[389969881,1759913445467,-1665.3,0.00021369,2]
[389969883,1759913445476,-1665.43370106,0.00021369,2]
[389969885,1759913445485,-500.0,0.00021369,2]
[389969887,1759913445494,-7828.61,0.00021369,2]
[389969889,1759913445504,-346.43586926,0.00021369,2]
[389969891,1759913445514,-696.46,0.00021369,2]
[389969893,1759913445523,-500.0,0.00021369,2]
[389969895,1759913445532,-500.0,0.00021369,2]
[389969896,1759913445542,-525.84027649,0.00021369,2]
[389969898,1759913445551,-500.0,0.00021369,2]
[389969901,1759913445561,-727.86,0.00021369,2]
[389969903,1759913445570,-500.0,0.00021369,2]
[389969904,1759913445580,-500.0,0.00021369,2]
[389969906,1759913445589,-500.0,0.00021369,2]
[389969908,1759913445599,-500.0,0.00021369,2]
[389969911,1759913445610,-500.0,0.00021369,2]
[389969913,1759913445620,-1450.16,0.00021369,2]
[389969915,1759913445630,-500.0,0.00021369,2]
[389969917,1759913445640,-4530.62,0.00021369,2]
[389969919,1759913445649,-356.93671944,0.00021369,2]
[389969921,1759913445658,-500.0,0.00021369,2]
[389969923,1759913445668,-500.0,0.00021369,2]
[389969925,1759913445678,-1122.75,0.00021369,2]
[389969927,1759913445687,-500.0,0.00021369,2]
[389969929,1759913445697,-604.83,0.00021369,2]
[389969931,1759913445706,-500.0,0.00021369,2]
[389969932,1759913445716,-500.0,0.00021369,2]
[389969934,1759913445726,-500.0,0.00021369,2]
[389969937,1759913445736,-500.0,0.00021369,2]
[389969959,1759913445925,-500.0,0.00021369,2]
[389969961,1759913445941,-500.0,0.00021369,2]
[389969963,1759913445951,-500.0,0.00021369,2]
[389969965,1759913445960,-480.5587753,0.00021369,2]
[389969967,1759913445969,-500.0,0.00021369,2]
[389969969,1759913445979,-1141.59,0.00021369,2]
[389969971,1759913445989,-500.31414163,0.00021369,2]
[389969973,1759913445998,-4690.88,0.00021369,2]
[389969975,1759913446010,-727.01,0.00021369,2]
[389969977,1759913446020,-5619.05,0.00021369,2]
[389969979,1759913446030,-23153.77,0.00021369,2]
[389969981,1759913446039,-500.0,0.00021369,2]
[389969983,1759913446051,-528.53,0.00021369,2]
[389969985,1759913446060,-500.0,0.00021369,2]
[389969987,1759913446070,-500.0,0.00021369,2]
[389969989,1759913446079,-596.5,0.00021369,2]
[389969991,1759913446088,-500.0,0.00021369,2]
[389969993,1759913446099,-582.76,0.00021369,2]
[389969995,1759913446112,-1648.65,0.00021369,2]
[389969998,1759913446122,-1173.62,0.00021369,2]
[389969999,1759913446139,-500.0,0.00021369,2]
[389970001,1759913446148,-5077.29,0.00021369,2]
[389970004,1759913446158,-1025.84,0.00021369,2]
[389970006,1759913446168,-500.0,0.00021369,2]
[389970008,1759913446179,-500.0,0.00021369,2]
[389970010,1759913446188,-1409.43,0.00021369,2]
[389970012,1759913446198,-8668.28,0.00021369,2]
[389970014,1759913446207,-1179.83,0.00021369,2]
[389970016,1759913446218,-1024.67,0.00021369,2]
[389970018,1759913446228,-754.15,0.00021369,2]
[389970020,1759913446237,-424.27500569,0.00021369,2]
[389970022,1759913446247,-500.0,0.00021369,2]
[389970024,1759913446256,-500.0,0.00021369,2]
[389970026,1759913446266,-151.0,0.00021369,7]
[389970028,1759913446275,-630.52069328,0.00021369,2]
[389970030,1759913446284,-187.858684,0.00021369,7]
[389970032,1759913446294,-500.0,0.00021369,2]
[389970034,1759913446303,-514.03,0.00021369,2]
[389970036,1759913446313,-500.0,0.00021369,2]
[389970037,1759913446323,-402.00603937,0.00021369,2]
[389970039,1759913446332,-500.0,0.00021369,2]
[389970041,1759913446341,-500.0,0.00021369,2]
[389970043,1759913446352,-500.0,0.00021369,2]
[389970045,1759913446364,-500.0,0.00021369,2]
[389970047,1759913446374,-2194.57,0.00021369,2]
[389970049,1759913446384,-500.0,0.00021369,2]
[389970051,1759913446393,-500.0,0.00021369,2]
[389970053,1759913446402,-500.0,0.00021369,2]
[389970055,1759913446412,-500.0,0.00021369,2]
[389970057,1759913446422,-500.0,0.00021369,2]
[389970059,1759913446432,-822.0,0.00021369,2]
[389970061,1759913446442,-2933.86,0.00021369,2]
[389970062,1759913446452,-500.0,0.00021369,2]
[389970064,1759913446462,-500.0,0.00021369,2]
[389970066,1759913446472,-500.0,0.00021369,2]
[389970069,1759913446483,-11559.55,0.00021369,2]
[389970071,1759913446493,-500.0,0.00021369,2]
[389970073,1759913446504,-151.0,0.00021369,7]
[389970075,1759913446513,-151.0,0.00021369,7]
[389970077,1759913446522,-2074.11,0.00021369,2]
[389970078,1759913446532,-500.0,0.00021369,2]
[389970080,1759913446541,-151.0,0.00021369,7]
[389970082,1759913446551,-500.0,0.00021369,2]
[389970084,1759913446560,-151.0,0.00021369,7]
[389970086,1759913446569,-500.0,0.00021369,2]
[389970088,1759913446578,-500.0,0.00021369,2]
[389970090,1759913446588,-151.0,0.00021369,7]
[389970093,1759913446598,-151.0,0.00021369,7]
[389970095,1759913446610,-2311.32,0.00021369,2]
[389970097,1759913446619,-5532.31,0.00021369,2]
[389970099,1759913446628,-500.0,0.00021369,2]
[389970101,1759913446638,-500.0,0.00021369,2]
[389970103,1759913446647,-500.0,0.00021369,2]
[389970105,1759913446657,-894.830191,0.00021369,7]
[389970107,1759913446667,-894.830191,0.00021369,7]
[389970109,1759913446676,-894.830191,0.00021369,7]
[389970111,1759913446686,-894.830191,0.00021369,7]
[389970113,1759913446696,-1674.52,0.00021369,2]
[389970115,1759913446706,-894.830191,0.00021369,7]
[389970117,1759913446715,-894.830191,0.00021369,7]
[389970119,1759913446725,-894.830191,0.00021369,7]
[389970121,1759913446734,-894.830191,0.00021369,7]
[389970123,1759913446743,-500.0,0.00021369,2]
[389970125,1759913446753,-500.0,0.00021369,2]
[389970127,1759913446764,-774.76,0.00021369,2]
[389970129,1759913446773,-500.0,0.00021369,2]
[389970131,1759913446783,-2405.74,0.00021369,2]
[389970133,1759913446793,-500.0,0.00021369,2]
[389970135,1759913446804,-10113.81,0.00021369,2]
[389970137,1759913446814,-501.12586889,0.00021369,2]
[389970139,1759913446824,-1517.07,0.00021369,2]
[389970141,1759913446833,-226.914944,0.00021369,7]
[389970143,1759913446843,-226.914944,0.00021369,7]
[389970145,1759913446853,-151.0,0.00021369,7]
[389970147,1759913446863,-1768.68,0.00021369,2]
[389970149,1759913446872,-151.0,0.00021369,7]
[389970151,1759913446882,-226.914944,0.00021369,7]
[389970153,1759913446892,-151.0,0.00021369,7]
[389970155,1759913446901,-226.914944,0.00021369,7]
[389970157,1759913446911,-151.0,0.00021369,7]
[389970159,1759913446920,-500.0,0.00021369,2]
[389970161,1759913446930,-226.914944,0.00021369,7]
[389970163,1759913446940,-1653.96,0.00021369,2]
[389970166,1759913446950,-226.914944,0.00021369,7]
[389970167,1759913446960,-500.0,0.00021369,2]
[389970170,1759913446969,-744.66,0.00021369,2]
[389970172,1759913446979,-500.0,0.00021369,2]
[389970173,1759913446988,-226.914944,0.00021369,7]
[389970174,1759913446997,-226.914944,0.00021369,7]
[389970175,1759913447007,-500.0,0.00021369,2]
[389970176,1759913447016,-500.0,0.00021369,2]
[389970177,1759913447026,-500.0,0.00021369,2]
[389970178,1759913447035,-174.202717,0.00021369,7]
[389970179,1759913447045,-174.202717,0.00021369,7]
[389970180,1759913447053,-1557.46,0.00021369,2]
[389970181,1759913447063,-174.202717,0.00021369,7]
[389970182,1759913447072,-500.0,0.00021369,2]
[389970183,1759913447082,-174.202717,0.00021369,7]
[389970184,1759913447091,-500.0,0.00021369,2]
[389970185,1759913447101,-500.0,0.00021369,2]
[389970186,1759913447111,-151.0,0.00021369,7]
[389970187,1759913447120,-4841.18,0.00021369,2]
[389970188,1759913447135,-151.0,0.00021369,7]
[389970189,1759913447145,-500.0,0.00021369,2]
[389970190,1759913447154,-151.0,0.00021369,7]
[389970191,1759913447165,-151.0,0.00021369,7]
[389970192,1759913447174,-151.819959,0.00021369,7]
[389970193,1759913447183,-1794.05,0.00021369,2]
[389970194,1759913447193,-151.0,0.00021369,7]
[389970196,1759913447203,-500.0,0.00021369,2]
[389970198,1759913447213,-2923.1,0.00021369,2]
[389970200,1759913447223,-500.0,0.00021369,2]
[389970203,1759913447233,-727.63,0.00021369,2]
[389970205,1759913447242,-500.0,0.00021369,2]
[389970207,1759913447252,-500.0,0.00021369,2]
[389970209,1759913447261,-1313.15,0.00021369,2]
[389970211,1759913447270,-977.89,0.00021369,2]
[389970213,1759913447279,-502.35707718,0.00021369,2]
[389970215,1759913447288,-957.1,0.00021369,2]
[389970217,1759913447298,-500.0,0.00021369,2]
[389970219,1759913447307,-500.0,0.00021369,2]
[389970221,1759913447316,-500.0,0.00021369,2]
[389970223,1759913447326,-500.0,0.00021369,2]
[389970225,1759913447335,-2134.24,0.00021369,2]
[389970227,1759913447346,-500.0,0.00021369,2]
[389970229,1759913447356,-501.42384181,0.00021369,2]
[389970231,1759913447365,-500.0,0.00021369,2]
[389970233,1759913447375,-500.0,0.00021369,2]
[389970235,1759913447384,-1313.41,0.00021369,2]
[389970237,1759913447394,-866.39,0.00021369,2]
[389970239,1759913447404,-500.0,0.00021369,2]
[389970241,1759913447413,-3852.52,0.00021369,2]
[389970243,1759913447423,-1587.28,0.00021369,2]
[389970245,1759913447433,-3520.86,0.00021369,2]
[389970247,1759913447442,-1109.486862,0.00021369,7]
[389970249,1759913447452,-1109.486862,0.00021369,7]
[389970251,1759913447462,-1109.486862,0.00021369,7]
[389970253,1759913447471,-500.0,0.00021369,2]
[389970255,1759913447481,-1109.486862,0.00021369,7]
[389970257,1759913447490,-500.0,0.00021369,2]
[389970259,1759913447500,-500.0,0.00021369,2]
[389970261,1759913447510,-631.32,0.00021369,2]
[389970263,1759913447520,-631.32,0.00021369,2]
[389970265,1759913447530,-1109.486862,0.00021369,7]
[389970267,1759913447539,-631.32,0.00021369,2]
[389970269,1759913447549,-1109.486862,0.00021369,7]
[389970271,1759913447559,-631.32,0.00021369,2]
[389970274,1759913447570,-465.6943921,0.00021369,2]
[389970276,1759913447580,-631.32,0.00021369,2]
[389970278,1759913447590,-631.32,0.00021369,2]
[389970280,1759913447599,-631.32,0.00021369,2]
[389970282,1759913447610,-3980.97,0.00021369,2]
[389970284,1759913447620,-631.32,0.00021369,2]
[389970286,1759913447629,-631.32,0.00021369,2]
[389970288,1759913447639,-1109.486862,0.00021369,7]
[389970290,1759913447649,-1109.486862,0.00021369,7]
[389970292,1759913447658,-631.32,0.00021369,2]
[389970294,1759913447667,-4292.97,0.00021369,2]
[389970296,1759913447676,-631.32,0.00021369,2]
[389970298,1759913447686,-500.0,0.00021369,2]
[389970300,1759913447695,-10541.41,0.00021369,2]
[389970302,1759913447705,-631.32,0.00021369,2]
[389970304,1759913447715,-631.32,0.00021369,2]
[389970306,1759913447724,-631.32,0.00021369,2]
[389970308,1759913447734,-631.32,0.00021369,2]
[389970310,1759913447744,-631.32,0.00021369,2]
[389970312,1759913447754,-500.0,0.00021369,2]
[389970314,1759913447763,-631.32,0.00021369,2]
[389970316,1759913447773,-1655.34,0.00021369,2]
[389970318,1759913447783,-631.32,0.00021369,2]
[389970320,1759913447793,-631.32,0.00021369,2]
[389970322,1759913447803,-631.32,0.00021369,2]
[389970324,1759913447812,-631.32,0.00021369,2]
[389970326,1759913447822,-631.32,0.00021369,2]
[389970328,1759913447831,-631.32,0.00021369,2]
[389970330,1759913447840,-631.4290148,0.00021369,2]
[389970332,1759913447850,-500.0,0.00021369,2]
[389970334,1759913447860,-500.0,0.00021369,2]
[389970336,1759913447870,-500.0,0.00021369,2]
[389970338,1759913447879,-3356.82,0.00021369,2]
[389970340,1759913447889,-500.0,0.00021369,2]
[389970342,1759913447898,-500.0,0.00021369,2]
[389970344,1759913447907,-4310.13,0.00021369,2]
[389970347,1759913447918,-151.0,0.00021369,7]
[389970348,1759913447927,-151.0,0.00021369,7]
[389970350,1759913447936,-500.0,0.00021369,2]
[389970352,1759913447946,-500.0,0.00021369,2]
[389970355,1759913447955,-409.906574,0.00021369,7]
[389970357,1759913447965,-500.41492233,0.00021369,2]
[389970359,1759913447974,-409.906574,0.00021369,7]
[389970361,1759913447984,-500.0,0.00021369,2]
[389970363,1759913447993,-672.82,0.00021369,2]
[389970365,1759913448002,-409.906574,0.00021369,7]
[389970367,1759913448011,-409.906574,0.00021369,7]
[389970369,1759913448021,-504.32650793,0.00021369,2]
[389970371,1759913448031,-500.0,0.00021369,2]
[389970373,1759913448040,-2865.24,0.00021369,2]
[389970375,1759913448049,-500.0,0.00021369,2]
[389970377,1759913448059,-1686.01,0.00021369,2]
[389970379,1759913448068,-689.36,0.00021369,2]
[389970380,1759913448078,-409.906574,0.00021369,7]
[389970383,1759913448088,-500.0,0.00021369,2]
[389970385,1759913448098,-409.906574,0.00021369,7]
[389970387,1759913448108,-500.0,0.00021369,2]
[389970389,1759913448117,-509.73600551,0.00021369,2]
[389970391,1759913448130,-409.906574,0.00021369,7]